[Event "EYCC Girls-U16 2019"]
[Site "Bratislava"]
[Date "2019.08.10"]
[Round "9.12"]
[White "Sade, Defne"]
[Black "Khachatryan, Veronika"]
[Result "1-0"]
[ECO "B35"]
[WhiteElo "1897"]
[BlackElo "1870"]
[Annotator "NA"]
[PlyCount "95"]
[EventDate "2019.08.02"]
[EventType "swiss"]
[EventCountry "SVK"]
[SourceTitle "playchess.com"]
[Source "ChessBase"]
[SourceQuality "1"]
[TimeControl "40/5400+30:1800+30"]

1. e4 {[%emt 0:00:00]} c5 {[%emt 0:00:00]} 2. Nf3 {[%emt 0:00:00]} Nc6 {[%emt 0:00:00]} 3. d4 {[%emt 0:00:38]} cxd4 {[%emt 0:00:00]} 4. Nxd4 {[%emt 0:00:05]} g6 {[%emt 0:00:08]} 5. Nc3 {[%emt 0:00:25]} Bg7 {[%emt 0:00:05]} 6. Be3 {[%emt 0:00:04]} Nf6 {[%emt 0:00:14]} 7. Bc4 {[%emt 0:00:05]} O-O {[%emt 0:00:08]} 8. Bb3 {[%emt 0:00:05]} a5 {[%emt 0:00:06]} 9. a4 {[%emt 0:00:49]} Ng4 {[%emt 0:00:22]} 10. O-O {[%emt 0:14:33]} Nxe3 {[%emt 0:05:43]} 11. fxe3 {[%emt 0:00:06]} Ne5 {[%emt 0:08:13]} 12. h3 {[%emt 0:00:46]} d6 {[%emt 0:01:11]} 13. Kh1 {[%emt 0:00:47]} Bd7 {[%emt 0:07:24]} 14. Nf3 {[%emt 0:04:14]} Rc8 {[%emt 0:10:18]} 15. Qe1 {[%emt 0:05:01]} Nc4 {[%emt 0:10:52]} 16. Ng5 {[%emt 0:01:13]} e6 {[%emt 0:15:21]} 17. Qg3 {[%emt 0:32:24]} Nxb2 {[%emt 0:11:13]} 18. Nb5 {[%emt 0:00:19]} Bxb5 {[%emt 0:04:56]} 19. axb5 {[%emt 0:00:11]} Rc5 {[%emt 0:00:40]} 20. Nxf7 {[%emt 0:08:29]} Rxf7 {[%emt 0:08:22]} 21. Bxe6 {[%emt 0:00:37]} Rcc7 {[%emt 0:01:10]} 22. Rxf7 {[%emt 0:01:05]} Rxf7 {[%emt 0:00:11]} 23. Rf1 {[%emt 0:00:13]} Bf6 {[%emt 0:00:27]} 24. e5 {[%emt 0:07:13]} dxe5 {[%emt 0:00:40]} 25. e4 {[%emt 0:00:07]} a4 {[%emt 0:06:42]} 26. Qa3 {[%emt 0:00:54]} Kg7 {[%emt 0:04:50]} 27. Bxf7 {[%emt 0:01:33]} Kxf7 {[%emt 0:00:22]} 28. Qxb2 {[%emt 0:00:16]} Kg7 {[%emt 0:01:18]} 29. Qa3 {[%emt 0:00:49]} Qd4 {[%emt 0:01:26]} 30. Qf3 {[%emt 0:00:53]} Qd6 {[%emt 0:01:09]} 31. c4 {[%emt 0:00:38]} b6 {[%emt 0:00:17]} 32. Rd1 {[%emt 0:01:23]} Qe6 {[%emt 0:00:49]} 33. Qd3 {[%emt 0:00:39]} Be7 {[%emt 0:00:58]} 34. Qd5 {[%emt 0:06:39]} Qxd5 {[%emt 0:00:44]} 35. cxd5 {[%emt 0:06:09]} Bd6 {[%emt 0:00:07]} 36. Kh2 {[%emt 0:00:06]} Kf6 {[%emt 0:00:38]} 37. Kg3 {[%emt 0:00:18]} a3 {[%emt 0:00:15]} 38. Rd2 {[%emt 0:01:35]} Bb4 {[%emt 0:00:49]} 39. Ra2 {[%emt 0:00:26]} Ke7 {[%emt 0:00:09]} 40. Kg4 {[%emt 0:00:00]} h6 {[%emt 0:00:00]} 41. h4 {[%emt 0:01:26]} h5+ {[%emt 0:10:38]} 42. Kg5 {[%emt 0:00:38]} Kf7 {[%emt 0:00:09]} 43. Kh6 {[%emt 0:01:25]} Bf8+ {[%emt 0:01:55]} 44. Kh7 {[%emt 0:00:18]} Bc5 {[%emt 0:00:04]} 45. Ra1 {[%emt 0:02:29]} Bb4 {[%emt 0:03:09]} 46. Rf1+ {[%emt 0:02:09]} Ke7 {[%emt 0:00:04]} 47. Rf2 {[%emt 0:04:11]} Bc3 {[%emt 0:00:50]} 48. Ra2 {[%emt 0:00:05]} 1-0

[Event "EYCC Girls-U16 2019"]
[Site "Bratislava"]
[Date "2019.08.10"]
[Round "9.13"]
[White "Marcinczyk, Monika"]
[Black "Donghvani, Nia"]
[Result "1-0"]
[ECO "B85"]
[WhiteElo "1960"]
[BlackElo "1864"]
[Annotator "NA"]
[PlyCount "47"]
[EventDate "2019.08.02"]
[EventType "swiss"]
[EventCountry "SVK"]
[SourceTitle "playchess.com"]
[Source "ChessBase"]
[SourceQuality "1"]
[TimeControl "40/5400+30:1800+30"]

1. e4 {[%emt 0:00:00]} c5 {[%emt 0:00:00]} 2. Nf3 {[%emt 0:00:00]} e6 {[%emt 0:00:00]} 3. d4 {[%emt 0:00:00]} cxd4 {[%emt 0:00:00]} 4. Nxd4 {[%emt 0:00:00]} a6 {[%emt 0:00:00]} 5. Be2 {[%emt 0:00:23]} Nf6 {[%emt 0:02:04]} 6. Nc3 {[%emt 0:00:23]} Qc7 {[%emt 0:02:00]} 7. O-O {[%emt 0:00:30]} d6 {[%emt 0:00:44]} 8. f4 {[%emt 0:00:33]} Be7 {[%emt 0:01:05]} 9. Qe1 {[%emt 0:00:23]} O-O {[%emt 0:00:59]} 10. Qg3 {[%emt 0:00:29]} Qb6 {[%emt 0:06:12]} 11. Be3 {[%emt 0:05:18]} Qxb2 {[%emt 0:02:23]} 12. Bf2 {[%emt 0:21:24]} Qb4 {[%emt 0:12:36]} 13. e5 {[%emt 0:22:11]} dxe5 {[%emt 0:07:26]} 14. fxe5 {[%emt 0:00:37]} Nfd7 {[%emt 0:02:50]} 15. Nb3 {[%emt 0:12:18]} Bd8 {[%emt 0:00:21]} 16. Bd3 {[%emt 0:09:00]} Nc6 {[%emt 0:05:55]} 17. Rae1 {[%emt 0:00:54]} Bc7 {[%emt 0:04:25]} 18. Bxh7+ {[%emt 0:03:45]} Kxh7 {[%emt 0:02:32]} 19. Re4 {[%emt 0:00:25]} Qa3 {[%emt 0:14:27]} 20. Rh4+ {[%emt 0:04:50]} Kg8 {[%emt 0:00:01]} 21. Qh3 {[%emt 0:00:16]} f6 {[%emt 0:00:36]} 22. Qxe6+ {[%emt 0:01:06]} Rf7 {[%emt 0:00:40]} 23. Qh3 {[%emt 0:01:47]} Re7 {[%emt 0:01:15]} 24. e6 {[%emt 0:01:17]} 1-0

[Event "EYCC Girls-U16 2019"]
[Site "Bratislava"]
[Date "2019.08.10"]
[Round "9.14"]
[White "Lukacs, Anna Kata"]
[Black "Eizaguerri Floris, Maria"]
[Result "1-0"]
[ECO "C11"]
[WhiteElo "1907"]
[BlackElo "2099"]
[Annotator "NA"]
[PlyCount "95"]
[EventDate "2019.08.02"]
[EventType "swiss"]
[EventCountry "SVK"]
[SourceTitle "playchess.com"]
[Source "ChessBase"]
[SourceQuality "1"]
[TimeControl "40/5400+30:1800+30"]

1. e4 {[%emt 0:00:17]} e6 {[%emt 0:00:00]} 2. d4 {[%emt 0:00:24]} d5 {[%emt 0:00:00]} 3. Nc3 {[%emt 0:00:22]} Nf6 {[%emt 0:00:00]} 4. e5 {[%emt 0:00:30]} Nfd7 {[%emt 0:00:00]} 5. f4 {[%emt 0:01:15]} c5 {[%emt 0:00:00]} 6. Nf3 {[%emt 0:00:18]} Nc6 {[%emt 0:00:05]} 7. Ne2 {[%emt 0:05:46]} a6 {[%emt 0:07:48]} 8. c3 {[%emt 0:01:37]} b5 {[%emt 0:02:34]} 9. g3 {[%emt 0:03:27]} Qb6 {[%emt 0:04:22]} 10. Bh3 {[%emt 0:03:16]} g6 {[%emt 0:03:34]} 11. O-O {[%emt 0:01:53]} Be7 {[%emt 0:06:26]} 12. Kh1 {[%emt 0:02:32]} b4 {[%emt 0:01:29]} 13. Qc2 {[%emt 0:12:18]} a5 {[%emt 0:11:28]} 14. Be3 {[%emt 0:14:26]} Ba6 {[%emt 0:03:50]} 15. g4 {[%emt 0:10:40]} Rc8 {[%emt 0:03:34]} 16. Qd2 {[%emt 0:02:08]} bxc3 {[%emt 0:03:24]} 17. bxc3 {[%emt 0:00:09]} cxd4 {[%emt 0:00:15]} 18. Nfxd4 {[%emt 0:06:18]} Nxd4 {[%emt 0:08:27]} 19. Bxd4 {[%emt 0:01:19]} Bc5 {[%emt 0:00:12]} 20. Rab1 {[%emt 0:05:32]} Qa7 {[%emt 0:01:26]} 21. Rfd1 {[%emt 0:01:09]} Nb6 {[%emt 0:11:33]} 22. f5 {[%emt 0:04:19]} Nc4 {[%emt 0:01:27]} 23. Qg5 {[%emt 0:02:30]} Qe7 {[%emt 0:05:49]} 24. Qf4 {[%emt 0:02:33]} Na3 {[%emt 0:01:56]} 25. Rb2 {[%emt 0:01:02]} Bxe2 {[%emt 0:04:56]} 26. Rxe2 {[%emt 0:00:06]} Nb5 {[%emt 0:00:38]} 27. Rb2 {[%emt 0:02:05]} Nxd4 {[%emt 0:07:12]} 28. cxd4 {[%emt 0:00:07]} Bb4 {[%emt 0:00:12]} 29. Rdb1 {[%emt 0:01:09]} Rc3 {[%emt 0:01:39]} 30. Bf1 {[%emt 0:01:30]} g5 {[%emt 0:05:31]} 31. Bb5+ {[%emt 0:05:46]} Kf8 {[%emt 0:00:10]} 32. Qf2 {[%emt 0:01:53]} h6 {[%emt 0:03:49]} 33. Rc2 {[%emt 0:02:37]} h5 {[%emt 0:00:52]} 34. Rxc3 {[%emt 0:01:41]} Bxc3 {[%emt 0:00:05]} 35. Qc2 {[%emt 0:01:35]} Qc7 {[%emt 0:01:23]} 36. Rb3 {[%emt 0:00:38]} Kg7 {[%emt 0:00:47]} 37. f6+ {[%emt 0:00:50]} Kh6 {[%emt 0:00:10]} 38. Qxc3 {[%emt 0:01:07]} Rc8 {[%emt 0:00:21]} 39. Qxc7 {[%emt 0:01:09]} Rxc7 {[%emt 0:00:05]} 40. gxh5 {[%emt 0:00:00]} Kxh5 {[%emt 0:00:00]} 41. Be2+ {[%emt 0:03:06]} Kg6 {[%emt 0:01:52]} 42. Rh3 {[%emt 0:02:51]} Kf5 {[%emt 0:02:34]} 43. Bd3+ {[%emt 0:04:35]} Kg4 {[%emt 0:00:46]} 44. Rg3+ {[%emt 0:00:34]} Kf4 {[%emt 0:00:29]} 45. Kg2 {[%emt 0:00:28]} Rb7 {[%emt 0:00:39]} 46. Rf3+ {[%emt 0:01:22]} Kg4 {[%emt 0:00:04]} 47. Be2 {[%emt 0:03:32]} Kh4 {[%emt 0:00:45]} 48. Rh3# {[%emt 0:00:13]} 1-0

[Event "EYCC Girls-U16 2019"]
[Site "Bratislava"]
[Date "2019.08.10"]
[Round "9.15"]
[White "Ozbek, Busra"]
[Black "Katkov, Michelle"]
[Result "0-1"]
[ECO "C80"]
[WhiteElo "1866"]
[BlackElo "2129"]
[Annotator "NA"]
[PlyCount "106"]
[EventDate "2019.08.02"]
[EventType "swiss"]
[EventCountry "SVK"]
[SourceTitle "playchess.com"]
[Source "ChessBase"]
[SourceQuality "1"]
[TimeControl "40/5400+30:1800+30"]

1. e4 {[%emt 0:00:00]} e5 {[%emt 0:00:00]} 2. Nf3 {[%emt 0:00:00]} Nc6 {[%emt 0:00:00]} 3. Bb5 {[%emt 0:00:00]} a6 {[%emt 0:00:00]} 4. Ba4 {[%emt 0:00:00]} Nf6 {[%emt 0:00:00]} 5. O-O {[%emt 0:00:19]} Nxe4 {[%emt 0:00:00]} 6. d4 {[%emt 0:00:19]} b5 {[%emt 0:00:02]} 7. Bb3 {[%emt 0:00:02]} d5 {[%emt 0:00:04]} 8. dxe5 {[%emt 0:00:31]} Be6 {[%emt 0:00:04]} 9. Nbd2 {[%emt 0:00:10]} Bc5 {[%emt 0:00:35]} 10. Nxe4 {[%emt 0:00:31]} dxe4 {[%emt 0:00:11]} 11. Bxe6 {[%emt 0:00:19]} fxe6 {[%emt 0:08:13]} 12. Ng5 {[%emt 0:15:31]} Qxd1 {[%emt 0:02:38]} 13. Rxd1 {[%emt 0:00:05]} O-O {[%emt 0:00:34]} 14. Nxe4 {[%emt 0:00:02]} Bb6 {[%emt 0:00:38]} 15. a4 {[%emt 0:00:04]} Rad8 {[%emt 0:09:39]} 16. Bg5 {[%emt 0:07:38]} Rd5 {[%emt 0:02:40]} 17. axb5 {[%emt 0:19:21]} axb5 {[%emt 0:05:39]} 18. Re1 {[%emt 0:18:49]} Rxe5 {[%emt 0:05:59]} 19. Bd2 {[%emt 0:02:51]} Nd4 {[%emt 0:09:45]} 20. Bc3 {[%emt 0:05:57]} Ref5 {[%emt 0:02:13]} 21. Rad1 {[%emt 0:05:22]} Nxc2 {[%emt 0:08:03]} 22. Re2 {[%emt 0:00:22]} Rd5 {[%emt 0:03:50]} 23. Rxd5 {[%emt 0:10:04]} exd5 {[%emt 0:00:08]} 24. Ng5 {[%emt 0:01:52]} Nd4 {[%emt 0:04:41]} 25. Rd2 {[%emt 0:07:13]} Nb3 {[%emt 0:03:13]} 26. Rxd5 {[%emt 0:03:54]} Rxf2 {[%emt 0:00:45]} 27. Bd4 {[%emt 0:00:31]} Bxd4 {[%emt 0:01:12]} 28. Rxd4 {[%emt 0:00:24]} Rxg2+ {[%emt 0:00:24]} 29. Kxg2 {[%emt 0:00:02]} Nxd4 {[%emt 0:00:08]} 30. Kf2 {[%emt 0:00:47]} h6 {[%emt 0:01:07]} 31. Ne4 {[%emt 0:00:31]} Kf7 {[%emt 0:00:47]} 32. Nc5 {[%emt 0:00:29]} Ne6 {[%emt 0:01:56]} 33. Ne4 {[%emt 0:00:47]} Ng5 {[%emt 0:02:22]} 34. Nc5 {[%emt 0:00:23]} Ke7 {[%emt 0:00:18]} 35. Ke3 {[%emt 0:00:22]} Kd6 {[%emt 0:00:17]} 36. b4 {[%emt 0:01:09]} Kd5 {[%emt 0:00:41]} 37. Kd3 {[%emt 0:00:40]} h5 {[%emt 0:02:33]} 38. Na6 {[%emt 0:00:55]} Ne6 {[%emt 0:01:02]} 39. Nb8 {[%emt 0:00:35]} Nf4+ {[%emt 0:05:00]} 40. Ke3 {[%emt 0:00:00]} g5 {[%emt 0:00:00]} 41. Na6 {[%emt 0:01:53]} Ne6 {[%emt 0:00:48]} 42. Kd2 {[%emt 0:03:42]} Kc4 {[%emt 0:03:01]} 43. Kc2 {[%emt 0:01:14]} h4 {[%emt 0:02:36]} 44. Kd2 {[%emt 0:00:58]} c6 {[%emt 0:00:39]} 45. Nb8 {[%emt 0:02:02]} Nd4 {[%emt 0:00:12]} 46. Na6 {[%emt 0:00:21]} Nf3+ {[%emt 0:00:15]} 47. Ke3 {[%emt 0:00:14]} Nxh2 {[%emt 0:00:16]} 48. Kf2 {[%emt 0:00:11]} Ng4+ {[%emt 0:00:16]} 49. Kg1 {[%emt 0:00:41]} Ne5 {[%emt 0:00:14]} 50. Nc7 {[%emt 0:00:29]} Kxb4 {[%emt 0:00:09]} 51. Ne6 {[%emt 0:00:02]} g4 {[%emt 0:00:11]} 52. Nf4 {[%emt 0:00:36]} c5 {[%emt 0:00:24]} 53. Nd5+ {[%emt 0:00:02]} Kb3 {[%emt 0:00:14]} 0-1

[Event "EYCC Girls-U16 2019"]
[Site "Bratislava"]
[Date "2019.08.10"]
[Round "9.16"]
[White "Dubovyk, Anastasiia"]
[Black "Ilyina, Lada"]
[Result "0-1"]
[ECO "C02"]
[WhiteElo "1824"]
[BlackElo "2048"]
[Annotator "NA"]
[PlyCount "70"]
[EventDate "2019.08.02"]
[EventType "swiss"]
[EventCountry "SVK"]
[SourceTitle "playchess.com"]
[Source "ChessBase"]
[SourceQuality "1"]
[TimeControl "40/5400+30:1800+30"]

1. e4 {[%emt 0:00:00]} e6 {[%emt 0:00:00]} 2. d4 {[%emt 0:00:00]} d5 {[%emt 0:00:00]} 3. e5 {[%emt 0:00:00]} c5 {[%emt 0:00:00]} 4. c3 {[%emt 0:00:00]} Qb6 {[%emt 0:00:06]} 5. Nf3 {[%emt 0:00:08]} Nc6 {[%emt 0:00:16]} 6. a3 {[%emt 0:00:09]} Bd7 {[%emt 0:00:23]} 7. b4 {[%emt 0:00:18]} cxd4 {[%emt 0:00:11]} 8. cxd4 {[%emt 0:00:08]} Rc8 {[%emt 0:00:21]} 9. Be3 {[%emt 0:00:45]} Nge7 {[%emt 0:01:11]} 10. Bd3 {[%emt 0:00:50]} Nf5 {[%emt 0:00:09]} 11. O-O {[%emt 0:00:52]} Nxe3 {[%emt 0:00:57]} 12. fxe3 {[%emt 0:00:11]} Be7 {[%emt 0:00:04]} 13. Nbd2 {[%emt 0:00:54]} Nb8 {[%emt 0:05:58]} 14. Rc1 {[%emt 0:08:38]} O-O {[%emt 0:03:43]} 15. Qb3 {[%emt 0:14:04]} Bb5 {[%emt 0:10:57]} 16. h4 {[%emt 0:05:35]} Qa6 {[%emt 0:05:14]} 17. Bxb5 {[%emt 0:01:22]} Qxb5 {[%emt 0:00:11]} 18. Rc3 {[%emt 0:10:29]} Rc6 {[%emt 0:06:38]} 19. Rfc1 {[%emt 0:05:24]} Rfc8 {[%emt 0:00:15]} 20. e4 {[%emt 0:04:14]} a5 {[%emt 0:07:59]} 21. exd5 {[%emt 0:02:55]} exd5 {[%emt 0:02:21]} 22. Rxc6 {[%emt 0:02:40]} Rxc6 {[%emt 0:00:54]} 23. Rxc6 {[%emt 0:00:37]} Nxc6 {[%emt 0:01:20]} 24. a4 {[%emt 0:05:26]} Qxb4 {[%emt 0:02:20]} 25. Qxd5 {[%emt 0:00:26]} Nxd4 {[%emt 0:12:44]} 26. Qd7 {[%emt 0:14:03]} Ne6 {[%emt 0:04:41]} 27. h5 {[%emt 0:05:39]} h6 {[%emt 0:01:30]} 28. Kh1 {[%emt 0:03:28]} Bf8 {[%emt 0:01:48]} 29. Qd5 {[%emt 0:12:30]} Qg4 {[%emt 0:03:15]} 30. Qxb7 {[%emt 0:01:05]} Qxh5+ {[%emt 0:01:00]} 31. Nh2 {[%emt 0:00:25]} Qd1+ {[%emt 0:00:16]} 32. Nhf1 {[%emt 0:00:13]} Qxa4 {[%emt 0:00:18]} 33. Ne4 {[%emt 0:00:27]} Qd1 {[%emt 0:02:27]} 34. Qa6 {[%emt 0:00:45]} Qh5+ {[%emt 0:00:19]} 35. Kg1 {[%emt 0:01:17]} Qxe5 {[%emt 0:00:08]} 0-1

[Event "EYCC Girls-U16 2019"]
[Site "Bratislava"]
[Date "2019.08.10"]
[Round "9.17"]
[White "Djidjeli, Sarah"]
[Black "Diez, Ambre"]
[Result "1-0"]
[ECO "C54"]
[WhiteElo "2017"]
[BlackElo "1908"]
[Annotator "NA"]
[PlyCount "89"]
[EventDate "2019.08.02"]
[EventType "swiss"]
[EventCountry "SVK"]
[SourceTitle "playchess.com"]
[Source "ChessBase"]
[SourceQuality "1"]
[TimeControl "40/5400+30:1800+30"]

1. e4 {[%emt 0:00:00]} e5 {[%emt 0:00:00]} 2. Nf3 {[%emt 0:00:00]} Nc6 {[%emt 0:00:00]} 3. Bc4 {[%emt 0:00:00]} Bc5 {[%emt 0:00:00]} 4. c3 {[%emt 0:00:00]} Nf6 {[%emt 0:00:02]} 5. d3 {[%emt 0:00:00]} O-O {[%emt 0:00:08]} 6. O-O {[%emt 0:00:01]} d5 {[%emt 0:00:22]} 7. exd5 {[%emt 0:00:09]} Nxd5 {[%emt 0:00:08]} 8. a4 {[%emt 0:00:08]} a6 {[%emt 0:00:36]} 9. Nbd2 {[%emt 0:00:33]} Nb6 {[%emt 0:01:27]} 10. Ba2 {[%emt 0:00:21]} Bf5 {[%emt 0:05:02]} 11. b4 {[%emt 0:14:58]} Bd6 {[%emt 0:04:14]} 12. Ne4 {[%emt 0:07:35]} h6 {[%emt 0:14:10]} 13. a5 {[%emt 0:11:33]} Nc8 {[%emt 0:02:53]} 14. Qe2 {[%emt 0:02:40]} Re8 {[%emt 0:11:29]} 15. Bd2 {[%emt 0:08:00]} Bf8 {[%emt 0:00:49]} 16. Rfe1 {[%emt 0:03:23]} Nd6 {[%emt 0:06:21]} 17. Rad1 {[%emt 0:05:29]} Be6 {[%emt 0:08:15]} 18. Bxe6 {[%emt 0:04:28]} Rxe6 {[%emt 0:00:12]} 19. Bc1 {[%emt 0:00:58]} g6 {[%emt 0:06:09]} 20. Qa2 {[%emt 0:10:16]} Bg7 {[%emt 0:03:09]} 21. Nfd2 {[%emt 0:03:50]} Re7 {[%emt 0:06:14]} 22. Nxd6 {[%emt 0:01:45]} Qxd6 {[%emt 0:00:33]} 23. Ne4 {[%emt 0:00:52]} Qd8 {[%emt 0:01:10]} 24. Qc4 {[%emt 0:03:22]} Na7 {[%emt 0:07:13]} 25. Nc5 {[%emt 0:02:00]} Rb8 {[%emt 0:01:02]} 26. Qh4 {[%emt 0:00:25]} g5 {[%emt 0:04:44]} 27. Qc4 {[%emt 0:06:21]} Nb5 {[%emt 0:01:31]} 28. Bd2 {[%emt 0:02:52]} Nd6 {[%emt 0:02:36]} 29. Qg4 {[%emt 0:00:30]} b6 {[%emt 0:01:10]} 30. axb6 {[%emt 0:01:43]} cxb6 {[%emt 0:01:18]} 31. Nxa6 {[%emt 0:01:15]} Ra8 {[%emt 0:00:08]} 32. b5 {[%emt 0:00:24]} Nxb5 {[%emt 0:00:30]} 33. Nb4 {[%emt 0:00:10]} Rc7 {[%emt 0:01:44]} 34. c4 {[%emt 0:01:19]} Nd4 {[%emt 0:00:58]} 35. Nd5 {[%emt 0:00:15]} Rc6 {[%emt 0:01:09]} 36. Bb4 {[%emt 0:03:21]} Re6 {[%emt 0:01:49]} 37. Bc3 {[%emt 0:01:14]} Qd6 {[%emt 0:03:35]} 38. Rb1 {[%emt 0:01:08]} Ra6 {[%emt 0:02:14]} 39. h3 {[%emt 0:01:25]} f5 {[%emt 0:02:08]} 40. Qd1 {[%emt 0:00:00]} e4 {[%emt 0:00:00]} 41. dxe4 {[%emt 0:05:49]} Nc6 {[%emt 0:02:51]} 42. Bxg7 Kxg7 {[%emt 0:00:10]} 43. exf5 {[%emt 0:04:54]} Rxe1+ {[%emt 0:00:44]} 44. Qxe1 {[%emt 0:00:04]} Ne5 {[%emt 0:00:48]} 45. Qe4 1-0

[Event "EYCC Girls-U16 2019"]
[Site "Bratislava"]
[Date "2019.08.10"]
[Round "9.18"]
[White "Bardorz, Jana"]
[Black "Hercog, Nusa"]
[Result "1-0"]
[ECO "B48"]
[WhiteElo "1883"]
[BlackElo "2053"]
[Annotator "NA"]
[PlyCount "59"]
[EventDate "2019.08.02"]
[EventType "swiss"]
[EventCountry "SVK"]
[SourceTitle "playchess.com"]
[Source "ChessBase"]
[SourceQuality "1"]
[TimeControl "40/5400+30:1800+30"]

1. e4 {[%emt 0:00:00]} c5 {[%emt 0:00:00]} 2. Nf3 {[%emt 0:00:00]} Nc6 {[%emt 0:00:00]} 3. d4 {[%emt 0:00:00]} cxd4 {[%emt 0:00:00]} 4. Nxd4 {[%emt 0:00:00]} e6 {[%emt 0:00:00]} 5. Nc3 {[%emt 0:01:04]} Qc7 {[%emt 0:00:00]} 6. Be3 {[%emt 0:01:15]} a6 {[%emt 0:00:15]} 7. Qf3 {[%emt 0:01:53]} Nf6 {[%emt 0:00:53]} 8. O-O-O {[%emt 0:02:23]} Ne5 {[%emt 0:02:40]} 9. Qg3 {[%emt 0:01:50]} b5 {[%emt 0:03:55]} 10. a3 {[%emt 0:07:47]} Bb7 {[%emt 0:15:50]} 11. Bxb5 {[%emt 0:11:36]} Bxa3 {[%emt 0:41:22]} 12. Bf4 {[%emt 0:33:11]} Nh5 {[%emt 0:05:06]} 13. Bxe5 {[%emt 0:04:17]} Nxg3 {[%emt 0:00:18]} 14. Bxc7 {[%emt 0:00:55]} Nxh1 {[%emt 0:08:03]} 15. Rxh1 {[%emt 0:04:36]} Bc5 {[%emt 0:05:41]} 16. Nb3 {[%emt 0:02:22]} Bxf2 {[%emt 0:02:08]} 17. Ba4 {[%emt 0:02:18]} Rc8 {[%emt 0:00:24]} 18. Bd6 {[%emt 0:02:22]} Rc4 {[%emt 0:01:59]} 19. Na5 {[%emt 0:03:37]} Be3+ {[%emt 0:03:03]} 20. Kb1 {[%emt 0:00:50]} Rd4 {[%emt 0:01:48]} 21. Nxb7 {[%emt 0:01:49]} Rd2 {[%emt 0:00:34]} 22. g3 {[%emt 0:01:55]} Bd4 {[%emt 0:01:26]} 23. Bb4 {[%emt 0:03:35]} Rg2 {[%emt 0:01:09]} 24. Nd6+ {[%emt 0:01:04]} Ke7 {[%emt 0:01:07]} 25. Nf5+ {[%emt 0:00:38]} Kd8 {[%emt 0:00:03]} 26. Nxd4 {[%emt 0:00:14]} Kc7 {[%emt 0:00:42]} 27. Ba5+ {[%emt 0:02:27]} Kc8 {[%emt 0:00:03]} 28. Nf3 {[%emt 0:00:57]} Rf2 {[%emt 0:00:09]} 29. Ne5 {[%emt 0:00:29]} d6 {[%emt 0:00:05]} 30. Nc4 {[%emt 0:00:36]} 1-0

[Event "EYCC Girls-U16 2019"]
[Site "Bratislava"]
[Date "2019.08.10"]
[Round "9.19"]
[White "De Zoeten, Cato"]
[Black "Pipia, Ekaterine"]
[Result "0-1"]
[ECO "B06"]
[WhiteElo "1684"]
[BlackElo "1945"]
[Annotator "NA"]
[PlyCount "88"]
[EventDate "2019.08.02"]
[EventType "swiss"]
[EventCountry "SVK"]
[SourceTitle "playchess.com"]
[Source "ChessBase"]
[SourceQuality "1"]
[TimeControl "40/5400+30:1800+30"]

1. e4 {[%emt 0:01:57]} g6 {[%emt 0:00:00]} 2. d4 {[%emt 0:00:49]} Bg7 {[%emt 0:00:00]} 3. Nc3 {[%emt 0:00:40]} d6 {[%emt 0:00:00]} 4. Be3 {[%emt 0:00:57]} a6 {[%emt 0:00:00]} 5. Qd2 {[%emt 0:00:17]} b5 {[%emt 0:00:10]} 6. h4 {[%emt 0:02:27]} h5 {[%emt 0:00:19]} 7. O-O-O {[%emt 0:01:44]} Bb7 {[%emt 0:00:07]} 8. Nh3 {[%emt 0:01:00]} Nf6 {[%emt 0:01:59]} 9. e5 {[%emt 0:03:47]} dxe5 {[%emt 0:03:17]} 10. dxe5 {[%emt 0:00:40]} Qxd2+ {[%emt 0:00:25]} 11. Bxd2 {[%emt 0:00:09]} Ng4 {[%emt 0:05:00]} 12. e6 {[%emt 0:04:48]} f5 {[%emt 0:06:20]} 13. f3 {[%emt 0:05:14]} Ne5 {[%emt 0:00:06]} 14. Nf4 {[%emt 0:04:54]} Nbc6 {[%emt 0:01:58]} 15. Ncd5 {[%emt 0:10:19]} O-O-O {[%emt 0:01:02]} 16. Bc3 {[%emt 0:01:04]} Rhe8 {[%emt 0:08:41]} 17. Nxg6 {[%emt 0:04:26]} Bh6+ {[%emt 0:01:25]} 18. Ngf4 {[%emt 0:02:50]} Rxd5 {[%emt 0:03:39]} 19. Rxd5 {[%emt 0:00:02]} Bxf4+ {[%emt 0:00:09]} 20. Kb1 {[%emt 0:00:33]} Rd8 {[%emt 0:06:43]} 21. Rxd8+ {[%emt 0:01:57]} Kxd8 {[%emt 0:00:26]} 22. Be2 {[%emt 0:12:07]} Bc8 {[%emt 0:02:09]} 23. g4 {[%emt 0:04:44]} fxg4 {[%emt 0:01:00]} 24. fxg4 {[%emt 0:00:39]} hxg4 {[%emt 0:05:49]} 25. Rf1 {[%emt 0:03:55]} Bh6 {[%emt 0:02:40]} 26. Rf5 {[%emt 0:04:43]} Bxe6 {[%emt 0:03:30]} 27. Rxe5 {[%emt 0:00:47]} Nxe5 {[%emt 0:00:11]} 28. Bxe5 {[%emt 0:00:04]} c6 {[%emt 0:02:25]} 29. b3 {[%emt 0:02:06]} Ke8 {[%emt 0:01:16]} 30. a4 {[%emt 0:08:56]} Kf7 {[%emt 0:00:37]} 31. axb5 {[%emt 0:00:39]} axb5 {[%emt 0:00:08]} 32. Bg3 {[%emt 0:01:49]} Kg6 {[%emt 0:00:39]} 33. c4 {[%emt 0:00:57]} bxc4 {[%emt 0:01:06]} 34. bxc4 {[%emt 0:00:11]} Bf5+ {[%emt 0:00:50]} 35. Ka2 {[%emt 0:01:07]} Bg7 {[%emt 0:00:27]} 36. Kb3 {[%emt 0:05:13]} Bf6 {[%emt 0:00:23]} 37. Kb4 {[%emt 0:01:49]} Kh5 {[%emt 0:00:08]} 38. Kc5 {[%emt 0:00:49]} Be4 {[%emt 0:00:09]} 39. Bf1 {[%emt 0:00:17]} Bxh4 {[%emt 0:00:22]} 40. Kd4 {[%emt 0:00:00]} Bh1 {[%emt 0:00:00]} 41. Bxh4 {[%emt 0:02:10]} Kxh4 {[%emt 0:00:36]} 42. Ke3 {[%emt 0:00:27]} g3 {[%emt 0:00:07]} 43. Bd3 {[%emt 0:00:40]} Kh3 {[%emt 0:00:29]} 44. Bf5+ {[%emt 0:00:50]} Kh2 {[%emt 0:00:07]} 0-1